bitfinex/quotes_ETHUSD_20241106
["timestamp","ask_amount","ask_price","bid_price","bid_amount"]
[1730911964069,0.834121,2657.7,2656.8,0.792]
[1730911964869,0.7782,2657.3,2656.3,12.13]
[1730911965372,4.54145,2657.3,2656.3,12.13]
[1730911965581,4.54145,2657.3,2656.3,12.8832]
[1730911965781,3.76337,2657.2,2656.3,0.7532]
[1730911965936,0.454157,2657.1,2656.3,0.7532]
[1730911966362,0.7782,2657.3,2656.3,0.7532]
[1730911966769,4.54153,2657.3,2656.3,0.7532]
[1730911968565,0.7782,2657.3,2656.3,0.7532]
[1730911968748,0.7782,2657.3,2656.4,0.07527934]
[1730911969077,0.7782,2657.3,2656.3,0.7532]
[1730911969374,0.7782,2657.3,2656.4,0.04510195]
[1730911969685,0.7782,2657.3,2656.4,0.42493215]
[1730911970639,0.7647,2657.6,2656.5,0.8117]
[1730911972703,0.7647,2657.6,2656.6,0.07526437]
[1730911972881,0.7647,2657.6,2656.5,0.8117]
[1730911973666,0.7647,2657.6,2656.6,0.07526437]
[1730911973868,0.7647,2657.6,2656.5,0.8117]
[1730911975015,0.7953,2657.4,2656.5,0.8117]
[1730911975499,0.7953,2657.4,2656.5,12.9417]
[1730911975708,3.76324,2657.3,2656.5,12.13]
[1730911975871,4.55842,2657.4,2656.5,12.13]
[1730911976073,0.82035711,2657.3,2656.5,12.13]
[1730911977677,0.8326,2657.2,2656.5,12.13]
[1730911977889,0.8326,2657.2,2656.6,0.07528019]
[1730911978083,0.8326,2657.2,2656.5,12.13]
[1730911979706,4.59607,2657.2,2656.5,12.13]
[1730911979905,0.91796671,2657.1,2656.5,12.13]
[1730911980613,4.59596,2657.2,2656.5,12.13]
[1730911981309,4.59596,2657.2,2656.2,0.7944]
[1730911981610,0.8326,2657.2,2656.3,0.04491774]
[1730911981816,4.59597,2657.2,2656.3,0.04491774]
[1730911982711,0.7731,2657.0,2656.3,0.04491774]
[1730911983024,0.45366,2656.9,2656.1,12.13]
[1730911983320,0.45366,2656.9,2656.4,0.04478153]
[1730911983517,0.45366,2656.9,2656.1,12.13]
[1730911983673,7.86261105,2656.9,2656.1,12.13]
[1730911983871,1.2399371,2656.8,2656.2,0.04129947]
[1730911984113,1.2399371,2656.8,2656.1,12.13]
[1730911985020,1.2399371,2656.8,2656.2,0.03856903]
[1730911985897,5.0038671,2656.8,2656.2,0.03856903]
[1730911986098,1.2399371,2656.8,2656.2,0.03856903]
[1730911987477,1.2399371,2656.8,2656.0,0.0693504]
[1730911987711,0.7765,2656.6,2656.3,0.04165824]
[1730911988018,0.7765,2656.6,2656.4,0.03833851]
[1730911988520,0.7765,2656.6,2656.0,0.0693504]
[1730911988719,0.7765,2656.6,2656.5,0.03822326]
[1730911988880,0.7765,2656.6,2656.0,0.0693504]
[1730911989220,0.7765,2656.6,2656.0,1.36653544]
[1730911989416,0.7765,2656.6,2656.1,0.03886357]
[1730911989633,0.7765,2656.6,2656.1,0.11415]
[1730911989909,0.8086,2657.1,2656.1,0.11415]
[1730911990218,0.8086,2657.1,2656.1,0.56418211]
[1730911990219,4.57216,2657.1,2656.1,0.56418211]
[1730911990572,3.76364,2657.0,2656.1,0.56418211]
[1730911990780,0.7629,2656.9,2656.1,0.11414809]
[1730911992284,0.7629,2656.9,2656.1,0.03886357]
[1730911992721,0.7629,2656.9,2656.1,0.11414831]
[1730911993017,0.7629,2656.9,2656.1,0.1141483]
[1730911993217,0.7629,2656.9,2656.1,0.03886357]
[1730911993520,4.58427,2656.7,2656.1,0.03886357]
[1730911993676,3.64515105,2656.6,2656.1,0.03886357]
[1730911994023,7.40944105,2656.6,2656.1,0.03886357]
[1730911996811,3.76435,2656.5,2656.1,0.03886357]
[1730911997431,3.64515105,2656.6,2656.1,0.03886357]
[1730911997432,7.40936105,2656.6,2656.1,0.03886357]
[1730911997734,4.58739611,2656.5,2656.1,0.03886357]
[1730911998690,3.76477,2656.2,2656.1,0.03886357]
[1730911999014,3.76491,2656.1,2656.0,0.0693504]
[1730911999217,4.57961,2656.1,2656.0,0.0693504]
[1730911999712,4.57961,2656.1,2656.0,0.01369605]
[1730911999713,8.12961,2656.1,2656.0,0.01369605]
[1730911999921,9.13356311,2656.1,2656.0,0.01369605]
[1730912000225,2.36865311,2656.1,2656.0,0.01369605]
[1730912000428,0.8147,2656.1,2656.0,0.01369605]
[1730912000797,0.7744,2656.4,2656.0,0.01369605]
[1730912001513,4.41955105,2656.4,2656.0,0.01369605]
[1730912002138,0.7744,2656.4,2656.0,0.01369605]
[1730912002348,0.7858,2656.7,2656.0,0.01369605]
[1730912002767,0.7858,2656.7,2656.1,0.03832096]
[1730912002973,0.7858,2657.1,2656.1,0.11361463]
[1730912003458,0.7858,2657.1,2656.2,0.8111]
[1730912003833,0.7858,2657.1,2656.3,0.04114675]
[1730912004019,0.7858,2657.1,2656.3,0.11642737]
[1730912004218,0.7858,2657.1,2656.3,0.04114675]
[1730912004452,0.7858,2657.1,2656.3,0.11642654]
[1730912004632,0.7858,2657.1,2656.3,0.04114675]
[1730912004853,0.7858,2657.1,2656.3,0.1164268]
[1730912005563,0.7636,2657.4,2656.3,0.1164268]
[1730912005736,0.7636,2657.4,2656.4,0.8067]
[1730912006203,0.7636,2657.4,2656.4,0.84778425]
[1730912006377,0.7636,2657.4,2656.4,0.8067]
[1730912006725,0.7636,2657.4,2656.5,0.07527406]
[1730912006936,0.8209,2657.6,2656.6,0.821]
[1730912007537,0.8209,2657.6,2656.7,0.1166493]
[1730912007737,0.7716,2657.9,2656.8,0.89126549]
[1730912007937,0.7716,2657.9,2656.8,0.816]
[1730912008255,0.7716,2657.9,2656.8,0.86085797]
[1730912008452,0.7716,2657.9,2656.9,1.19680689]
[1730912008687,0.8255,2658.3,2657.0,0.85625872]
[1730912008878,0.8255,2658.3,2657.2,0.781]
[1730912009054,0.8255,2658.3,2657.3,0.07525073]
[1730912009429,0.8255,2658.3,2657.3,0.781]
[1730912009825,0.8255,2658.8,2657.5,0.781]
[1730912010075,0.8255,2658.8,2657.7,0.831]
[1730912011222,3.64515105,2659.0,2657.9,0.831]
[1730912011421,3.64515105,2659.0,2658.0,0.90622788]
[1730912011585,3.64515105,2659.0,2658.0,0.831]
[1730912011918,4.46809315,2659.0,2658.0,0.831]
[1730912012495,4.46809315,2659.0,2658.1,0.0752245]
[1730912012791,4.46809315,2659.0,2658.2,0.7958]
[1730912013201,8.22891315,2659.0,2658.2,0.7958]
[1730912013400,0.7936,2658.6,2657.7,0.7958]
[1730912013588,0.4438751,2658.5,2657.7,0.7958]
[1730912013820,8.19985105,2658.8,2657.7,0.7958]
[1730912014647,11.96103105,2658.8,2657.7,0.7958]
[1730912014951,8.19985105,2658.8,2657.7,0.7958]
[1730912016324,3.76125,2658.7,2657.7,0.7958]
[1730912016850,3.76138,2658.6,2657.7,0.7958]
[1730912017053,0.376138,2658.5,2657.7,0.7958]
[1730912019057,0.376138,2658.5,2657.8,0.07523917]
[1730912019258,8.19985105,2658.8,2657.8,0.07523917]
[1730912019259,3.76124,2658.7,2657.8,0.07523917]
[1730912020465,3.76139,2658.6,2657.7,0.7958]
[1730912020647,4.44575105,2658.2,2657.4,0.7573]
[1730912020815,3.76222,2658.1,2657.4,0.7573]
[1730912021124,11.17007105,2657.9,2657.4,0.7573]
[1730912021370,7.40760105,2657.9,2657.4,0.7573]
[1730912022307,7.40759105,2657.9,2657.4,0.7573]
[1730912022955,3.64515105,2657.9,2657.4,0.7573]
[1730912024206,0.82079711,2658.0,2657.4,0.7573]
[1730912024363,3.0,2658.4,2657.1,0.7548]
[1730912024756,0.8197,2658.6,2657.3,0.7548]
[1730912024957,4.5811,2658.6,2657.3,0.7548]
[1730912025280,3.76152,2658.5,2657.3,0.7548]
[1730912025458,0.8197,2658.6,2657.3,0.7548]
[1730912025660,4.47939005,2658.5,2657.4,12.8848]
[1730912025860,8.24099005,2658.5,2657.4,12.8848]
[1730912026300,3.76166,2658.4,2657.4,12.8848]
[1730912026808,3.64515105,2658.2,2657.4,12.13]
[1730912026966,3.7626,2657.8,2657.2,0.7548]
[1730912027161,3.76289,2657.6,2656.3,12.13]
[1730912027394,3.76289,2657.6,2656.0,3.6788471]
[1730912027395,3.76279,2657.6,2656.5,0.7548]
[1730912027599,3.76293,2657.5,2656.5,0.7548]
[1730912027803,3.76293,2657.5,2656.6,0.05030663]
[1730912027972,0.7408081,2657.4,2656.6,0.05030663]
[1730912028294,0.7408081,2657.4,2656.2,0.01]
[1730912028295,0.7408081,2657.4,2656.7,0.07526708]
[1730912028495,0.7408081,2657.4,2656.2,0.01]
[1730912028496,0.7408081,2657.4,2656.4,0.7548]
[1730912028699,0.7408081,2657.4,2656.3,0.7548]
[1730912028985,0.7408081,2657.4,2656.6,0.7548]
[1730912029323,0.7408081,2657.4,2656.7,0.04591519]
[1730912029524,0.45037681,2657.3,2656.6,0.7548]
[1730912030261,0.45037681,2657.3,2656.7,0.05611857]
[1730912031173,0.45037681,2657.3,2656.7,0.13138681]
[1730912031836,0.45037681,2657.3,2656.7,0.05611857]
[1730912033352,3.76357,2657.1,2656.7,0.05611857]
[1730912033555,3.76385,2656.9,2656.7,0.05611857]
[1730912033766,3.76392,2656.8,2656.7,0.05611857]
[1730912033964,3.76398,2656.8,2656.2,0.7596]
[1730912034267,4.57158,2656.7,2656.2,0.7596]
[1730912034427,0.8074,2656.7,2656.2,0.80447547]
[1730912034634,1.68876172,2656.7,2656.2,0.80447547]
[1730912034862,1.68876172,2656.7,2656.2,0.7596]
[1730912035048,3.76422,2656.6,2656.2,0.80442109]
[1730912035534,3.76422,2656.6,2656.2,0.7596]
[1730912035750,5.45283172,2656.7,2656.2,0.7596]
[1730912035977,0.92168117,2656.6,2656.2,0.7596]
[1730912036828,4.57153,2656.7,2656.2,0.7596]
[1730912038328,0.8074,2656.7,2656.2,0.7596]
[1730912038570,8.733207,2657.0,2656.2,0.7596]
[1730912038774,3.76387,2656.9,2656.2,0.80065739]
[1730912038941,4.6372047,2656.9,2656.2,0.7596]
[1730912039145,4.6372047,2656.9,2656.2,0.80063155]
[1730912039755,3.76376,2657.0,2656.2,0.80063155]
[1730912040347,3.76359,2657.1,2656.2,0.80063155]
[1730912040559,3.76364,2657.1,2656.3,0.07528372]
[1730912040747,3.76361,2657.1,2656.3,0.04116786]
[1730912040959,7.24223721,2657.3,2656.3,0.04116786]
[1730912040960,0.376361,2657.0,2656.4,0.7543]
[1730912041163,4.59257,2657.4,2656.5,0.07527792]
[1730912041164,4.59256,2657.4,2656.5,0.07527792]
[1730912041480,7.86229,2657.6,2656.6,0.7543]
[1730912041775,3.76301,2657.5,2656.6,12.8843]
[1730912042133,3.76307,2657.4,2656.6,12.8843]
[1730912042341,0.376307,2657.3,2656.6,12.8843]
[1730912042569,12.10446721,2657.6,2656.6,12.8843]
[1730912042834,7.51223721,2657.6,2656.7,0.8006]
[1730912043138,3.27,2657.6,2656.7,0.8006]
[1730912043543,4.54866,2658.2,2656.8,12.20526612]
[1730912043751,3.76192,2658.3,2657.0,0.828]
[1730912043950,1.29121707,2658.3,2657.2,0.828]
[1730912044237,1.29121707,2658.3,2657.4,0.828]
[1730912044472,5.05302707,2658.3,2657.5,0.828]
[1730912044653,1.29121707,2658.3,2657.5,0.828]
[1730912045795,3.33,2658.7,2657.7,0.7747]
[1730912046082,3.33,2658.7,2657.9,0.7747]
[1730912046583,3.33,2658.7,2657.7,0.7747]
[1730912047139,3.33,2658.7,2657.9,0.7747]
[1730912049067,3.76082,2659.0,2657.9,0.7747]
[1730912049298,0.80030572,2658.9,2658.1,0.7858]
[1730912049899,0.8009,2659.3,2658.0,12.13]
[1730912049900,0.8009,2659.3,2658.3,0.8299]
[1730912050074,8.00257721,2659.4,2658.3,0.8299]
[1730912050401,3.76034,2659.4,2658.5,0.8299]
[1730912050606,3.76034,2659.4,2658.6,0.07521881]
[1730912050762,0.376034,2659.3,2658.6,0.07521881]
[1730912050963,0.376034,2659.3,2658.5,0.8299]
[1730912051358,0.376034,2659.3,2658.6,0.07521712]
[1730912051573,0.376034,2659.3,2658.4,0.807]
[1730912051774,8.00255721,2659.4,2658.4,0.807]
[1730912052770,4.24223721,2659.4,2658.4,0.807]
[1730912053393,3.76043,2659.3,2658.4,0.807]
[1730912053595,3.76047,2659.3,2658.4,0.807]
[1730912054905,8.00260721,2659.4,2658.4,0.807]
[1730912055108,0.80026072,2659.3,2658.4,2.1007]
[1730912055312,0.80026072,2659.3,2658.4,14.2307]
[1730912055606,3.76055,2659.2,2658.4,14.2307]
[1730912056105,0.80026072,2659.3,2658.4,14.2307]
[1730912056307,4.56072072,2659.3,2658.4,12.937]
[1730912056612,3.76067,2659.1,2658.4,12.937]
[1730912057169,8.32121072,2659.3,2658.4,12.937]
[1730912057510,0.80026072,2659.3,2658.5,0.8189]
[1730912057686,7.40134031,2659.4,2658.6,1.29489]
[1730912058395,7.52065,2659.4,2658.6,1.29489]
[1730912058596,7.40134031,2659.4,2658.7,0.07521711]
[1730912059116,7.40134031,2659.4,2658.7,0.7845]
[1730912059275,3.64104031,2659.4,2658.7,0.85971711]
[1730912059615,7.40086031,2659.7,2658.9,0.7759]
[1730912059974,3.76003,2659.6,2658.9,0.7759]
[1730912060169,3.76047,2659.3,2658.9,0.7759]
[1730912061105,7.40129031,2659.4,2658.9,0.7759]
[1730912061917,3.76042,2659.3,2658.9,0.7759]
[1730912062208,0.82326603,2659.2,2658.7,12.9099]
[1730912062775,4.58380603,2659.2,2658.7,12.9099]
[1730912063216,0.82326603,2659.2,2658.7,12.9099]
[1730912063418,3.76039,2659.3,2658.7,12.9099]
[1730912064071,3.76039,2659.3,2658.7,0.7799]
[1730912064277,7.40132031,2659.4,2658.7,0.7799]
[1730912064575,3.64104031,2659.4,2658.7,0.7799]
[1730912065586,7.40088031,2659.7,2658.8,0.07521577]
[1730912065789,8.10386431,2659.7,2658.3,0.8111]
[1730912066308,3.64104031,2659.7,2658.4,0.55]
[1730912066514,3.64104031,2659.7,2658.5,0.88980657]
[1730912068219,3.64104031,2659.7,2658.7,0.7748]
[1730912068418,3.64104031,2659.7,2658.9,0.7756]
[1730912068718,3.64104031,2659.7,2659.0,0.85080239]
[1730912068931,3.64104031,2660.0,2659.0,0.85080239]
[1730912069132,3.64104031,2660.3,2659.2,0.7756]
[1730912069276,3.64104031,2660.3,2659.4,0.7773]
[1730912069475,3.64104031,2660.3,2659.3,0.07519187]
[1730912069476,3.64104031,2660.3,2659.6,0.7773]
[1730912070194,3.64104031,2660.3,2659.2,12.14]
[1730912070398,3.64104031,2660.3,2659.4,0.8028]
[1730912070911,3.64104031,2660.6,2659.6,0.8028]
[1730912071422,7.39960031,2660.6,2659.6,0.8028]
[1730912072434,3.64104031,2660.3,2659.6,0.8028]
[1730912072647,3.64104031,2660.3,2659.6,2.09608]
[1730912073201,3.64104031,2660.3,2659.7,0.7791]
[1730912074197,7.39968031,2660.6,2659.7,0.7791]
[1730912076113,7.39968031,2660.6,2659.8,12.9534]
[1730912076407,7.39968031,2660.6,2659.8,14.378068]
[1730912077034,3.64104031,2660.6,2660.0,0.8234]
[1730912078042,3.75874,2660.5,2660.0,0.8234]
[1730912078195,7.39969031,2660.6,2660.0,0.8234]
[1730912078401,3.75882,2660.5,2660.0,0.8234]
[1730912078635,7.39969031,2660.6,2660.0,0.8234]
[1730912078803,3.75869,2660.5,2660.0,0.8234]
[1730912079736,3.75883,2660.4,2660.0,0.8234]
[1730912081476,7.51776,2660.4,2660.0,0.8234]
[1730912081739,3.75897,2660.3,2660.0,0.8234]
[1730912081942,3.75883,2660.4,2660.0,0.8234]
[1730912082916,3.75883,2660.4,2657.5,3.17887702]
[1730912082917,4.83952331,2660.3,2658.8,0.7599]
[1730912083248,3.76059,2659.2,2658.8,0.7599]
[1730912083408,7.40138031,2659.4,2658.8,0.7599]
[1730912083610,3.76034,2659.4,2658.8,0.7599]
[1730912084007,7.52071,2659.4,2658.8,0.7599]
[1730912084345,3.76034,2659.4,2658.8,0.7599]
[1730912085161,3.76039,2659.3,2658.8,0.7599]
[1730912085587,3.76034,2659.4,2658.8,0.7599]
[1730912085882,7.52066,2659.4,2658.8,0.7599]
[1730912086087,4.512386,2659.4,2658.8,0.7599]
[1730912086389,3.76055,2659.2,2658.8,0.7599]
[1730912087143,3.76032,2659.4,2658.8,0.7599]
[1730912087478,3.76039,2659.3,2658.8,0.7599]
[1730912088738,3.76032,2659.4,2658.8,0.7599]
[1730912088943,3.76045,2659.3,2658.8,0.7599]
[1730912089141,3.76054,2659.2,2658.8,0.7599]
[1730912089470,3.76073,2659.1,2658.8,0.7599]
[1730912090183,3.76088,2659.0,2658.8,0.7599]
[1730912090342,3.76076,2659.1,2658.8,0.7599]
[1730912091085,3.76092,2659.0,2658.8,0.7599]
[1730912092558,3.0,2659.9,2658.8,0.7599]
[1730912092779,3.76005,2659.6,2658.8,0.7599]
[1730912092963,3.76002,2659.6,2658.8,0.7599]
[1730912093677,3.76011,2659.5,2658.8,0.7599]
[1730912094664,3.76002,2659.6,2658.8,0.7599]
[1730912094868,3.76025,2659.4,2658.8,0.7599]
[1730912095596,7.5206,2659.4,2658.8,0.7599]
[1730912095759,3.76025,2659.4,2658.8,0.7599]
[1730912096709,3.76039,2659.3,2658.8,0.7599]
[1730912096853,3.76024,2659.5,2658.8,0.7599]
[1730912097052,3.76026,2659.4,2658.8,0.7599]
[1730912097501,0.74636403,2659.7,2658.8,0.7599]
[1730912097807,4.52290597,2662.0,2659.1,0.55]
[1730912097808,0.8288,2660.3,2659.1,0.55]
[1730912097961,3.75905,2660.3,2659.3,0.7559]
[1730912098155,3.75905,2660.3,2659.5,0.7559]
[1730912098601,3.75905,2660.3,2659.6,0.07518926]
[1730912098806,3.75876,2660.5,2659.7,0.7999]
[1730912099027,10.66952031,2660.7,2659.8,0.87508224]
[1730912099028,3.27,2660.7,2659.8,0.87508224]
[1730912099179,3.27,2660.7,2660.0,0.7999]
[1730912100461,3.64104031,2661.0,2660.2,0.8015]
[1730912100691,3.64104031,2661.0,2660.4,0.8015]
[1730912101005,3.75773,2661.2,2660.4,12.9315]
[1730912101213,3.75786,2661.1,2660.4,12.9315]
[1730912101504,3.64104031,2661.0,2660.4,12.9315]
[1730912101807,7.39903031,2661.0,2660.4,12.9315]
[1730912102005,3.75821,2660.9,2660.4,12.9315]
[1730912102163,3.64104031,2660.7,2660.4,12.9315]
[1730912102764,3.75821,2660.9,2660.4,12.9315]
[1730912103405,3.75828,2660.8,2660.4,12.9315]
[1730912103770,3.75869,2660.5,2659.5,12.8861]
[1730912104080,3.64104031,2659.6,2659.3,0.7561]
[1730912104405,3.64104031,2659.9,2659.3,0.7561]
[1730912104584,7.40061031,2659.9,2659.3,0.7561]
[1730912104785,3.75972,2659.8,2659.3,0.7561]
[1730912104985,3.64104031,2659.9,2659.3,0.7561]
[1730912105191,8.14068034,2659.9,2659.3,0.7561]
[1730912105508,0.74005003,2659.9,2659.3,0.7561]
[1730912105890,4.49963003,2659.9,2659.3,0.7561]
[1730912106389,7.9944879,2660.1,2659.3,0.7561]
[1730912106592,3.75948,2660.0,2659.3,0.7561]
[1730912107734,3.75963,2659.9,2659.3,0.7561]
[1730912107960,3.75948,2660.0,2659.3,0.7561]
[1730912108712,6.27,2660.3,2659.3,0.7561]
[1730912108943,10.02907,2660.3,2659.1,0.55]
[1730912109136,10.02907,2660.3,2659.0,0.7559]
[1730912109343,10.02907,2660.3,2659.1,0.55]
[1730912109548,3.75912,2660.2,2659.0,0.7975]
[1730912109749,3.7594,2660.0,2659.0,0.7975]
[1730912110044,3.75968,2659.8,2659.0,0.7975]
[1730912110555,3.75955,2659.9,2659.0,0.7975]
[1730912110854,3.75955,2659.9,2659.1,0.85089894]
[1730912111025,3.75955,2659.9,2659.1,0.7757]
[1730912111227,3.7597,2659.8,2659.1,0.7757]
[1730912111582,3.75945,2660.0,2659.2,0.07519896]
[1730912112056,3.75945,2660.0,2659.1,0.7757]
[1730912112057,3.7597,2659.8,2659.1,0.7757]
[1730912112261,3.7597,2659.8,2659.1,0.982545]
[1730912112565,3.75988,2659.7,2659.1,0.982545]
[1730912112745,3.75988,2659.7,2659.1,12.9057]
[1730912112919,7.51982,2659.7,2659.1,12.9057]
[1730912113259,3.75988,2659.7,2659.1,12.9057]
[1730912113864,0.79945779,2660.0,2659.2,0.89420322]
[1730912114070,3.75933,2660.1,2659.2,0.819]
[1730912114417,3.75942,2660.0,2659.2,0.819]
[1730912114835,3.75982,2659.7,2659.2,0.819]
[1730912115965,7.51928,2659.9,2659.2,0.819]
[1730912116483,3.75975,2659.8,2659.2,0.819]
[1730912116780,4.93519879,2659.8,2659.2,0.819]
[1730912116959,3.7599,2659.7,2659.2,0.819]
[1730912117480,3.7599,2659.7,2659.2,12.949]
[1730912118966,7.51985,2659.7,2659.2,12.949]
[1730912119386,3.7599,2659.7,2659.2,12.949]
[1730912119747,4.62939788,2659.7,2659.2,12.949]
[1730912120045,0.7902,2659.6,2658.7,0.7673]
[1730912120274,3.7902,2659.9,2658.7,0.7673]
[1730912120482,3.75968,2659.8,2658.8,0.07520212]
[1730912120786,3.75968,2659.8,2658.9,0.7673]
[1730912120993,3.75928,2660.1,2659.1,0.7719]
[1730912121286,3.75955,2659.9,2659.3,0.7719]
[1730912122465,0.675928,2660.0,2659.3,0.7719]
[1730912122687,3.75953,2659.9,2659.3,0.7719]
[1730912122893,3.75984,2659.7,2659.3,0.7719]
[1730912123396,3.75953,2659.9,2659.3,0.7719]
[1730912123569,3.7594,2660.0,2659.3,0.7719]
[1730912124461,3.75926,2660.1,2659.3,0.7719]
[1730912124672,7.5189,2660.0,2659.3,0.7719]
[1730912124995,3.75939,2660.0,2659.3,0.7719]
[1730912125371,7.39872193,2660.0,2659.3,0.7719]
[1730912125574,11.15819193,2660.0,2659.3,0.7719]
[1730912126657,3.63933193,2659.7,2659.3,0.7719]
[1730912126857,7.39916193,2659.7,2659.3,0.7719]
[1730912127054,3.76004,2659.6,2659.3,0.7719]
[1730912127500,3.75989,2659.7,2659.3,0.7719]
[1730912127708,3.63933193,2660.0,2659.3,0.7719]
[1730912127906,3.75932,2660.1,2658.8,12.13]
[1730912127907,10.5183,2660.2,2659.5,0.7941]
[1730912128207,8.17487319,2660.2,2659.5,0.7941]
[1730912129193,1.41576319,2660.2,2659.5,0.7941]
[1730912130576,6.75899,2660.3,2659.5,0.7941]
[1730912130782,3.75912,2660.2,2659.5,0.7941]
[1730912130978,3.0,2660.3,2659.6,0.07519467]
[1730912131217,3.0,2660.3,2659.7,0.7951]
[1730912131427,3.63933193,2660.4,2659.7,0.7951]
[1730912131587,7.39816193,2660.4,2659.7,0.7951]
[1730912132523,3.63933193,2660.4,2659.7,0.7951]
[1730912132825,7.39817193,2660.4,2659.7,0.7951]
[1730912133214,3.63933193,2660.4,2659.7,0.7951]
[1730912133825,6.63933193,2660.7,2659.8,0.07518848]
[1730912134037,3.0,2660.9,2659.9,12.8806]
[1730912134327,3.0,2660.9,2660.1,0.7506]
[1730912134328,3.75879,2660.5,2660.1,0.7506]
[1730912134535,3.63933193,2660.4,2660.1,0.7506]
[1730912135026,3.63933193,2660.7,2660.1,0.7506]
[1730912135604,7.39774193,2660.7,2660.1,0.7506]
[1730912135802,3.75857,2660.6,2660.1,0.7506]
[1730912136447,7.5172,2660.6,2660.1,0.7506]
[1730912136601,3.75857,2660.6,2660.1,0.7506]
[1730912137032,7.51724,2660.6,2660.1,0.7506]
[1730912137205,3.63933193,2660.4,2660.0,12.13]
[1730912137387,7.39858193,2660.1,2659.6,0.8297]
[1730912137731,11.15793193,2660.1,2659.6,0.8297]
[1730912137903,7.39858193,2660.1,2659.6,0.8297]
[1730912138501,3.75946,2660.0,2659.6,0.8297]
[1730912138708,3.63933193,2660.1,2659.6,0.8297]
[1730912138709,3.7596,2659.9,2659.6,0.8297]
[1730912138907,0.37596,2659.8,2658.8,0.7726]
[1730912139132,0.37596,2659.8,2659.0,0.7726]
[1730912139304,3.75941,2660.0,2659.0,0.7726]
[1730912140141,3.75964,2659.9,2659.0,0.7726]
[1730912140504,4.51434,2659.9,2659.0,0.7726]
[1730912141493,3.75997,2659.6,2659.0,0.7726]
[1730912141704,3.76012,2659.5,2659.0,0.7726]
[1730912141900,0.752009,2659.4,2659.0,0.7726]
[1730912142122,3.76012,2659.5,2659.0,0.7726]
[1730912144235,3.76055,2659.2,2659.0,0.7726]
[1730912144548,3.7603,2659.4,2659.0,0.7726]
[1730912144900,3.76039,2659.3,2659.0,0.7726]
[1730912145294,3.7603,2659.4,2659.0,0.7726]
[1730912145513,0.73996319,2659.3,2659.0,0.7726]
[1730912147050,3.75999,2659.6,2659.0,0.7726]
[1730912147913,7.52004,2659.6,2659.0,0.7726]
[1730912148111,3.75999,2659.6,2659.0,0.7726]
[1730912148549,7.39910193,2659.8,2659.0,0.7726]
[1730912148758,3.75977,2659.8,2659.0,0.7726]
[1730912148919,1.127391,2659.8,2659.0,0.7726]
[1730912149374,4.887091,2659.8,2659.0,0.7726]
[1730912150861,3.76049,2659.3,2658.4,12.13]
[1730912151068,3.76049,2659.3,2658.6,0.833]
[1730912151217,0.376049,2659.2,2658.6,0.833]
[1730912151555,4.136639,2659.2,2658.6,0.833]
[1730912152116,0.376049,2659.2,2658.6,0.833]
[1730912152317,6.76031,2659.4,2658.6,0.833]
[1730912152553,3.76041,2659.3,2658.6,0.833]
[1730912152721,3.76066,2659.2,2658.6,0.833]
[1730912153155,4.58526,2659.2,2658.6,0.833]
[1730912153463,0.834567,2659.1,2658.6,0.833]
[1730912153631,4.595267,2659.1,2658.6,0.833]
[1730912154722,0.834567,2659.1,2658.6,0.833]
[1730912155255,4.595247,2659.1,2658.6,0.833]
[1730912156865,3.7609,2659.0,2658.6,0.833]
[1730912157063,0.4595467,2658.9,2658.6,0.833]
[1730912159468,4.5852,2659.2,2658.6,0.833]
[1730912160319,8.34583,2659.2,2658.6,0.833]
[1730912160528,4.5852,2659.2,2658.6,0.833]
[1730912160957,0.8246,2659.2,2658.6,0.833]
[1730912161629,3.76045,2659.3,2658.6,0.833]
[1730912161823,4.512611,2659.2,2658.6,0.833]
[1730912162479,3.7607,2659.1,2658.6,0.833]
[1730912162767,4.887181,2659.8,2658.7,0.07522246]
[1730912162974,3.75998,2659.6,2658.9,0.7651]
[1730912163468,3.75988,2659.7,2658.9,0.7651]
[1730912164536,7.0387,2659.9,2658.9,0.7651]
[1730912164537,3.75969,2659.8,2659.0,0.07520691]
[1730912164731,3.75969,2659.8,2659.1,0.7741]
[1730912165559,7.39922193,2659.7,2659.1,0.7741]
[1730912165766,3.76017,2659.5,2659.1,0.7741]
[1730912166077,3.76024,2659.4,2659.1,0.7741]
[1730912166647,3.76017,2659.5,2659.1,0.7741]
[1730912166846,0.376017,2659.4,2659.1,0.7741]
[1730912167044,4.136277,2659.4,2659.1,0.7741]
[1730912167384,3.76078,2659.1,2658.2,0.7935]
[1730912167670,3.76078,2659.1,2658.3,12.13]
[1730912167671,3.76111,2658.8,2658.3,12.13]
[1730912167890,3.76096,2658.9,2657.9,12.9235]
[1730912167891,3.76175,2658.4,2657.9,12.9235]
[1730912168069,3.76175,2658.4,2657.9,0.7935]
[1730912168259,0.7626,2658.5,2657.9,0.7935]
[1730912168460,7.52222,2658.7,2657.9,0.7935]
[1730912168674,3.0,2658.5,2657.9,0.7935]
[1730912168984,0.7609,2658.7,2657.9,0.7935]
[1730912169152,3.63933193,2658.8,2657.9,0.7935]
[1730912169577,3.76123,2658.7,2657.9,0.7935]
[1730912170178,3.76139,2658.6,2657.9,0.7935]
[1730912170389,1.11619519,2658.6,2657.9,0.7935]
[1730912171090,0.376078,2659.0,2658.0,0.88003813]
[1730912171239,4.136898,2659.0,2658.2,0.8048]
[1730912171443,4.136898,2659.0,2658.2,0.88003108]
[1730912172538,4.136898,2659.0,2658.2,0.8048]
[1730912174749,3.761,2658.9,2658.2,0.8048]
[1730912174951,3.761,2658.9,2658.2,2.09828]
[1730912175181,6.63933193,2659.1,2658.3,0.83683108]
[1730912175547,3.0,2659.3,2658.5,0.7616]
[1730912175747,4.5867,2659.5,2658.5,0.83682089]